[Event "*** Titled Tuesday Blitz"]
[Site "Chess.com"]
[Date "2019.10.01"]
[Round "7"]
[White "Sajkochess"]
[Black "monalize"]
[Result "0-1"]
[WhiteElo "2261"]
[BlackElo "2407"]
[TimeControl "180+2"]
[EndTime "14:40:00 PDT"]
[Termination "monalize won by resignation"]

1. e4 {[%clk 0:03:01.9]} 1... c5 {[%clk 0:02:59.1]} 2. Nf3 {[%clk 0:03:02.1]}
2... d6 {[%clk 0:03:00.2]} 3. d4 {[%clk 0:03:03.2]} 3... cxd4 {[%clk 0:03:02.1]}
4. Nxd4 {[%clk 0:03:04.6]} 4... Nf6 {[%clk 0:03:00]} 5. Nc3 {[%clk 0:03:05.5]}
5... a6 {[%clk 0:02:58.4]} 6. g3 {[%clk 0:03:06.5]} 6... e6 {[%clk 0:01:35.7]}
7. Bg2 {[%clk 0:03:06.2]} 7... Qc7 {[%clk 0:01:36.1]} 8. O-O {[%clk 0:03:04.9]}
8... Nc6 {[%clk 0:01:31.6]} 9. Re1 {[%clk 0:02:56.1]} 9... Be7 {[%clk
0:01:28.6]} 10. Nxc6 {[%clk 0:02:54.7]} 10... bxc6 {[%clk 0:01:26.7]} 11. e5
{[%clk 0:02:55.8]} 11... dxe5 {[%clk 0:01:20.4]} 12. Rxe5 {[%clk 0:02:55.1]}
12... O-O {[%clk 0:01:21.1]} 13. Bf4 {[%clk 0:02:54.9]} 13... Bd6 {[%clk
0:01:17.1]} 14. Rxe6 {[%clk 0:02:54.9]} 14... Bxf4 {[%clk 0:01:11]} 15. Rxc6
{[%clk 0:02:54.6]} 15... Qa5 {[%clk 0:01:00.7]} 16. Rxf6 {[%clk 0:02:23.1]}
16... Be5 {[%clk 0:00:58]} 17. Bxa8 {[%clk 0:02:09.1]} 17... Bxf6 {[%clk
0:00:53.7]} 18. Bg2 {[%clk 0:01:47.8]} 18... Rd8 {[%clk 0:00:53]} 19. Nd5 {[%clk
0:01:44.6]} 19... Bxb2 {[%clk 0:00:49.4]} 20. Rb1 {[%clk 0:01:32.4]} 20... Be5
{[%clk 0:00:49.2]} 21. Qe2 {[%clk 0:01:06.4]} 21... f6 {[%clk 0:00:41.1]} 22.
Ne7+ {[%clk 0:01:00]} 22... Kh8 {[%clk 0:00:41.7]} 23. Nc6 {[%clk 0:00:59.4]}
23... Qxa2 {[%clk 0:00:41.1]} 24. Rd1 {[%clk 0:00:41.8]} 24... Rxd1+ {[%clk
0:00:40.2]} 25. Qxd1 {[%clk 0:00:41.2]} 25... Qa1 {[%clk 0:00:41.5]} 26. Qxa1
{[%clk 0:00:28.6]} 26... Bxa1 {[%clk 0:00:43.4]} 27. Kf1 {[%clk 0:00:24.2]}
27... Bc3 {[%clk 0:00:35.3]} 28. Ke2 {[%clk 0:00:23.6]} 28... Bf5 {[%clk
0:00:35.8]} 29. Kd1 {[%clk 0:00:14.6]} 29... a5 {[%clk 0:00:35.4]} 30. Bd5
{[%clk 0:00:07.6]} 30... a4 {[%clk 0:00:31.8]} 31. f3 {[%clk 0:00:05.3]} 31...
g5 {[%clk 0:00:32.2]} 32. g4 {[%clk 0:00:05.9]} 32... Bd7 {[%clk 0:00:27]} 33.
Ne7 {[%clk 0:00:04.9]} 33... a3 {[%clk 0:00:18.9]} 34. Nf5 {[%clk 0:00:04.4]}
34... h5 {[%clk 0:00:17.5]} 35. Ke2 {[%clk 0:00:04.3]} 35... Bc6 {[%clk
0:00:15.4]} 36. Bb3 {[%clk 0:00:03.8]} 36... Bb5+ {[%clk 0:00:15.5]} 37. Ke3
{[%clk 0:00:03.5]} 37... h4 {[%clk 0:00:13.6]} 38. Nd4 {[%clk 0:00:04.3]} 38...
Bd7 {[%clk 0:00:11.5]} 39. h3 {[%clk 0:00:04.8]} 39... Kg7 {[%clk 0:00:11.6]}
40. Nf5+ {[%clk 0:00:05.4]} 40... Kf8 {[%clk 0:00:11.4]} 41. Kd3 {[%clk
0:00:06.6]} 41... Be5 {[%clk 0:00:11]} 42. Nd4 {[%clk 0:00:06.8]} 42... Ke7
{[%clk 0:00:10.5]} 43. Nf5+ {[%clk 0:00:07]} 43... Kd8 {[%clk 0:00:11.1]} 44.
Nd4 {[%clk 0:00:07.6]} 44... Kc7 {[%clk 0:00:11.6]} 45. Ne2 {[%clk 0:00:08]}
45... Bc6 {[%clk 0:00:11.5]} 46. Ke3 {[%clk 0:00:06.4]} 46... Kd6 {[%clk
0:00:12.3]} 47. Nd4 {[%clk 0:00:07.6]} 47... Kc5 {[%clk 0:00:12.2]} 48. Nf5
{[%clk 0:00:08.1]} 48... Bd5 {[%clk 0:00:12.1]} 49. Bxd5 {[%clk 0:00:03.5]}
49... Kxd5 {[%clk 0:00:13]} 50. Kd3 {[%clk 0:00:04.7]} 50... a2 {[%clk
0:00:13.3]} 51. Ne3+ {[%clk 0:00:06.6]} 51... Kc5 {[%clk 0:00:13.6]} 0-1

[Event "*** Titled Tuesday Blitz"]
[Site "Chess.com"]
[Date "2019.10.01"]
[Round "7"]
[White "Olga_Girya"]
[Black "Bathory44"]
[Result "0-1"]
[WhiteElo "2490"]
[BlackElo "2622"]
[TimeControl "180+2"]
[EndTime "14:40:06 PDT"]
[Termination "Bathory44 won by resignation"]

1. d4 {[%clk 0:03:00.2]} 1... Nf6 {[%clk 0:03:00.5]} 2. c4 {[%clk 0:03:01.4]}
2... g6 {[%clk 0:03:02.1]} 3. Nc3 {[%clk 0:03:02.1]} 3... Bg7 {[%clk 0:03:03.7]}
4. e4 {[%clk 0:03:02.7]} 4... O-O {[%clk 0:03:04.7]} 5. Be2 {[%clk 0:03:04.4]}
5... d6 {[%clk 0:03:05.2]} 6. Be3 {[%clk 0:03:06]} 6... Nbd7 {[%clk 0:03:04.3]}
7. Nf3 {[%clk 0:03:05.9]} 7... e5 {[%clk 0:03:03.8]} 8. O-O {[%clk 0:03:06.8]}
8... Re8 {[%clk 0:03:03.6]} 9. Qc2 {[%clk 0:03:08.3]} 9... Nh5 {[%clk
0:03:01.8]} 10. Rfe1 {[%clk 0:03:01.5]} 10... Nf4 {[%clk 0:02:53.4]} 11. Bf1
{[%clk 0:03:02.7]} 11... Ne6 {[%clk 0:02:52.3]} 12. d5 {[%clk 0:03:00.6]} 12...
Nd4 {[%clk 0:02:15.5]} 13. Bxd4 {[%clk 0:02:59.6]} 13... exd4 {[%clk 0:02:17.4]}
14. Nb5 {[%clk 0:03:01.2]} 14... Nc5 {[%clk 0:02:16.9]} 15. Nbxd4 {[%clk
0:02:50.3]} 15... a5 {[%clk 0:02:18]} 16. Rad1 {[%clk 0:02:49]} 16... Bg4 {[%clk
0:02:13.3]} 17. h3 {[%clk 0:02:49.5]} 17... Bd7 {[%clk 0:02:14.3]} 18. Nb3
{[%clk 0:02:40.9]} 18... Ba4 {[%clk 0:02:07.3]} 19. Nfd2 {[%clk 0:02:31.2]}
19... Qf6 {[%clk 0:02:01.7]} 20. Rb1 {[%clk 0:02:21.5]} 20... Qe7 {[%clk
0:01:50.5]} 21. Qc1 {[%clk 0:02:13.1]} 21... b6 {[%clk 0:01:41.9]} 22. Na1
{[%clk 0:02:02.4]} 22... Bh6 {[%clk 0:01:40.9]} 23. b3 {[%clk 0:01:54.2]} 23...
Bd7 {[%clk 0:01:41.6]} 24. Nc2 {[%clk 0:01:39.3]} 24... Bxh3 {[%clk 0:01:40.3]}
25. gxh3 {[%clk 0:01:31.5]} 25... Qg5+ {[%clk 0:01:40.8]} 26. Kh1 {[%clk
0:01:26.5]} 26... Qxd2 {[%clk 0:01:39.5]} 27. Qxd2 {[%clk 0:01:27.7]} 27... Bxd2
{[%clk 0:01:41.4]} 28. Re2 {[%clk 0:01:18.4]} 28... Nxe4 {[%clk 0:01:38.8]} 29.
Rd1 {[%clk 0:01:08.7]} 29... Bh6 {[%clk 0:01:25.4]} 30. Rde1 {[%clk 0:01:04.8]}
30... f5 {[%clk 0:01:25.8]} 31. Bg2 {[%clk 0:01:02.8]} 31... Nf6 {[%clk
0:01:22]} 32. Nd4 {[%clk 0:00:55.1]} 32... Rxe2 {[%clk 0:01:14.3]} 33. Rxe2
{[%clk 0:00:56.1]} 33... a4 {[%clk 0:01:13]} 34. Bf3 {[%clk 0:00:46.7]} 34...
axb3 {[%clk 0:01:12.7]} 35. axb3 {[%clk 0:00:47.9]} 35... Ra1+ {[%clk
0:01:02.5]} 36. Kg2 {[%clk 0:00:48.6]} 36... Bf8 {[%clk 0:00:41.5]} 37. Nb5
{[%clk 0:00:48.6]} 37... Rb1 {[%clk 0:00:37.5]} 38. Re3 {[%clk 0:00:47.6]} 38...
f4 {[%clk 0:00:36.5]} 39. Re6 {[%clk 0:00:47.7]} 39... Nd7 {[%clk 0:00:34.7]}
40. Nxc7 {[%clk 0:00:45.1]} 40... Rxb3 {[%clk 0:00:34.9]} 41. Ne8 {[%clk
0:00:42.6]} 41... Ne5 {[%clk 0:00:34.1]} 42. Rxe5 {[%clk 0:00:15.1]} 42... dxe5
{[%clk 0:00:33.7]} 43. d6 {[%clk 0:00:16.3]} 43... Rd3 {[%clk 0:00:33]} 44. Bd5+
{[%clk 0:00:16.7]} 44... Rxd5 {[%clk 0:00:28.6]} 45. Nf6+ {[%clk 0:00:10.4]}
45... Kf7 {[%clk 0:00:29.7]} 46. Nxd5 {[%clk 0:00:11.6]} 46... Bxd6 {[%clk
0:00:29.4]} 47. Kf3 {[%clk 0:00:12.9]} 47... Ke6 {[%clk 0:00:28.5]} 48. Ke4
{[%clk 0:00:13.6]} 48... g5 {[%clk 0:00:27.8]} 49. Nxb6 {[%clk 0:00:14.3]} 49...
Bc5 {[%clk 0:00:26.8]} 50. Na4 {[%clk 0:00:08.6]} 50... Bxf2 {[%clk 0:00:27.6]}
51. c5 {[%clk 0:00:09.8]} 51... Bd4 {[%clk 0:00:28]} 52. Nb6 {[%clk 0:00:02.1]}
52... Bxc5 {[%clk 0:00:28.5]} 53. Nc4 {[%clk 0:00:03.7]} 53... Bd4 {[%clk
0:00:28.7]} 54. Nd2 {[%clk 0:00:05.2]} 54... h5 {[%clk 0:00:29.5]} 55. Nf3
{[%clk 0:00:06.5]} 55... Kf6 {[%clk 0:00:30.3]} 56. Ne1 {[%clk 0:00:06.3]} 56...
g4 {[%clk 0:00:30.7]} 57. hxg4 {[%clk 0:00:07]} 57... hxg4 {[%clk 0:00:32.6]}
58. Nd3 {[%clk 0:00:05.9]} 58... f3 {[%clk 0:00:33.2]} 0-1

[Event "*** Titled Tuesday Blitz"]
[Site "Chess.com"]
[Date "2019.10.01"]
[Round "7"]
[White "platy3"]
[Black "GianmarcoVaR"]
[Result "1-0"]
[WhiteElo "2843"]
[BlackElo "2601"]
[TimeControl "180+2"]
[EndTime "14:40:13 PDT"]
[Termination "platy3 won by resignation"]

1. e4 {[%clk 0:03:01.3]} 1... c6 {[%clk 0:03:01.6]} 2. Nf3 {[%clk 0:02:57.7]}
2... d5 {[%clk 0:03:03.5]} 3. d3 {[%clk 0:02:58.8]} 3... dxe4 {[%clk 0:03:03.8]}
4. dxe4 {[%clk 0:02:59.8]} 4... Qxd1+ {[%clk 0:03:05.7]} 5. Kxd1 {[%clk
0:03:01.4]} 5... Bg4 {[%clk 0:03:06.3]} 6. Be2 {[%clk 0:02:56.1]} 6... Nd7
{[%clk 0:03:07.8]} 7. Nfd2 {[%clk 0:02:56]} 7... Bxe2+ {[%clk 0:03:03.7]} 8.
Kxe2 {[%clk 0:02:57.9]} 8... e5 {[%clk 0:03:05]} 9. a4 {[%clk 0:02:57.4]} 9...
Ngf6 {[%clk 0:02:58.2]} 10. f3 {[%clk 0:02:57.5]} 10... Nc5 {[%clk 0:02:49.8]}
11. a5 {[%clk 0:02:51.9]} 11... Ne6 {[%clk 0:02:41.9]} 12. Nb3 {[%clk
0:02:51.9]} 12... O-O-O {[%clk 0:02:36.8]} 13. Be3 {[%clk 0:02:48.3]} 13... Nd4+
{[%clk 0:02:30]} 14. Bxd4 {[%clk 0:02:46.4]} 14... exd4 {[%clk 0:02:31.2]} 15.
Rd1 {[%clk 0:02:47.5]} 15... c5 {[%clk 0:02:32.3]} 16. Na3 {[%clk 0:02:43.3]}
16... Be7 {[%clk 0:02:21.1]} 17. Nc4 {[%clk 0:02:38.3]} 17... Rhe8 {[%clk
0:01:59]} 18. Nc1 {[%clk 0:02:23.6]} 18... Bd6 {[%clk 0:01:31.6]} 19. Kf2 {[%clk
0:01:50.4]} 19... Bf8 {[%clk 0:00:50.8]} 20. Nd3 {[%clk 0:01:50]} 20... Kb8
{[%clk 0:00:49.3]} 21. g4 {[%clk 0:01:27.9]} 21... g6 {[%clk 0:00:45.6]} 22. h4
{[%clk 0:01:28]} 22... h6 {[%clk 0:00:30.6]} 23. Nde5 {[%clk 0:01:21.7]} 23...
Re7 {[%clk 0:00:27.7]} 24. Nd3 {[%clk 0:01:22.8]} 24... Ree8 {[%clk 0:00:28.7]}
25. b3 {[%clk 0:01:21.5]} 25... Rd7 {[%clk 0:00:26.5]} 26. Re1 {[%clk
0:01:14.3]} 26... Rc7 {[%clk 0:00:26.3]} 27. Re2 {[%clk 0:01:09.1]} 27... Nh7
{[%clk 0:00:16.2]} 28. e5 {[%clk 0:01:08.6]} 28... Be7 {[%clk 0:00:16.5]} 29.
Kg3 {[%clk 0:01:08.5]} 29... Nf8 {[%clk 0:00:15.7]} 30. f4 {[%clk 0:01:03.8]}
30... Nd7 {[%clk 0:00:15.8]} 31. Rae1 {[%clk 0:00:57]} 31... Nf8 {[%clk
0:00:05.2]} 32. f5 {[%clk 0:00:55.1]} 32... gxf5 {[%clk 0:00:05.1]} 33. gxf5
{[%clk 0:00:55.5]} 33... Rc6 {[%clk 0:00:06.4]} 34. Nf4 {[%clk 0:00:47.2]} 34...
Bd8 {[%clk 0:00:07.4]} 35. Nd5 {[%clk 0:00:45.8]} 35... b5 {[%clk 0:00:07.9]}
36. axb6 {[%clk 0:00:45.2]} 36... axb6 {[%clk 0:00:09.8]} 37. Kh3 {[%clk
0:00:33]} 37... b5 {[%clk 0:00:10.1]} 38. Na3 {[%clk 0:00:34.2]} 38... c4 {[%clk
0:00:05.3]} 39. Nxb5 {[%clk 0:00:24.5]} 39... cxb3 {[%clk 0:00:06.3]} 40. cxb3
{[%clk 0:00:25.6]} 40... Rc5 {[%clk 0:00:07.6]} 41. Nd6 {[%clk 0:00:26.9]} 41...
Rxd5 {[%clk 0:00:03.6]} 42. Nxe8 {[%clk 0:00:28.2]} 42... d3 {[%clk 0:00:04.7]}
43. Re4 {[%clk 0:00:26.2]} 43... d2 {[%clk 0:00:03.6]} 44. Rd1 {[%clk
0:00:27.2]} 44... Rd3+ {[%clk 0:00:04.5]} 45. Kg2 {[%clk 0:00:26]} 45... Nd7
{[%clk 0:00:06]} 46. e6 {[%clk 0:00:25.3]} 46... fxe6 {[%clk 0:00:06.6]} 47.
fxe6 {[%clk 0:00:26.2]} 47... Nc5 {[%clk 0:00:07.7]} 48. Re2 {[%clk 0:00:22.3]}
48... Ba5 {[%clk 0:00:07.7]} 49. Nf6 {[%clk 0:00:20.1]} 49... Nxe6 {[%clk
0:00:03.5]} 50. Rxe6 {[%clk 0:00:20.5]} 50... Rxb3 {[%clk 0:00:05.1]} 51. Ne4
{[%clk 0:00:21.3]} 51... Rb4 {[%clk 0:00:05.6]} 52. Nxd2 {[%clk 0:00:16.7]}
52... Rb2 {[%clk 0:00:05.3]} 53. Re2 {[%clk 0:00:14.1]} 53... Bxd2 {[%clk
0:00:04.9]} 54. Rdxd2 {[%clk 0:00:14.7]} 54... Rb4 {[%clk 0:00:06.2]} 55. Kh3
{[%clk 0:00:15.1]} 55... Rb6 {[%clk 0:00:07.8]} 56. Rb2 {[%clk 0:00:14.5]} 56...
Ka7 {[%clk 0:00:09.7]} 57. Rxb6 {[%clk 0:00:15]} 57... Kxb6 {[%clk 0:00:11.6]}
58. Re6+ {[%clk 0:00:16.2]} 58... Kc7 {[%clk 0:00:10.1]} 59. Rxh6 {[%clk
0:00:18.1]} 1-0

[Event "*** Titled Tuesday Blitz"]
[Site "Chess.com"]
[Date "2019.10.01"]
[Round "7"]
[White "Alex_Terzi"]
[Black "Msb2"]
[Result "0-1"]
[WhiteElo "2621"]
[BlackElo "2890"]
[TimeControl "180+2"]
[EndTime "14:40:15 PDT"]
[Termination "Msb2 won by resignation"]

1. e4 {[%clk 0:03:01.9]} 1... c6 {[%clk 0:02:58.1]} 2. d4 {[%clk 0:03:02.4]}
2... d5 {[%clk 0:03:00]} 3. exd5 {[%clk 0:03:03.5]} 3... cxd5 {[%clk 0:03:01.9]}
4. Bd3 {[%clk 0:03:05.1]} 4... Nc6 {[%clk 0:03:03.5]} 5. c3 {[%clk 0:03:06.1]}
5... Qc7 {[%clk 0:03:05]} 6. Ne2 {[%clk 0:03:04.1]} 6... Bg4 {[%clk 0:03:05.5]}
7. O-O {[%clk 0:03:01.8]} 7... e6 {[%clk 0:02:25.3]} 8. Qe1 {[%clk 0:03:02.5]}
8... Nf6 {[%clk 0:02:25.7]} 9. f3 {[%clk 0:02:55.2]} 9... Bh5 {[%clk 0:02:26.7]}
10. Bf4 {[%clk 0:02:48.1]} 10... Bd6 {[%clk 0:02:23.4]} 11. Bxd6 {[%clk
0:02:48.3]} 11... Qxd6 {[%clk 0:02:25.3]} 12. Nd2 {[%clk 0:02:41.3]} 12... Bg6
{[%clk 0:02:25.1]} 13. Qb1 {[%clk 0:02:34.7]} 13... O-O-O {[%clk 0:02:15.2]} 14.
f4 {[%clk 0:02:21]} 14... Ng4 {[%clk 0:01:44.8]} 15. h3 {[%clk 0:02:06.3]} 15...
Nh6 {[%clk 0:01:32]} 16. Ng3 {[%clk 0:01:56]} 16... Rhg8 {[%clk 0:01:21.2]} 17.
Qc2 {[%clk 0:01:50.4]} 17... Ne7 {[%clk 0:01:16.6]} 18. Bxg6 {[%clk 0:01:41]}
18... Nxg6 {[%clk 0:01:06.7]} 19. Nh5 {[%clk 0:01:40.5]} 19... Kb8 {[%clk
0:00:59.9]} 20. Rae1 {[%clk 0:01:40.7]} 20... Ne7 {[%clk 0:00:50.5]} 21. Qd3
{[%clk 0:01:27.8]} 21... Nhf5 {[%clk 0:00:38.8]} 22. Nf3 {[%clk 0:01:26.2]}
22... Ng6 {[%clk 0:00:25.1]} 23. Ne5 {[%clk 0:01:22.6]} 23... Qc7 {[%clk
0:00:26.4]} 24. g4 {[%clk 0:01:07.8]} 24... Nd6 {[%clk 0:00:25.7]} 25. Ng3
{[%clk 0:01:08.6]} 25... Ne7 {[%clk 0:00:22.3]} 26. Kg2 {[%clk 0:01:02]} 26...
f5 {[%clk 0:00:21.7]} 27. g5 {[%clk 0:00:55.1]} 27... Ne4 {[%clk 0:00:22.1]} 28.
Re3 {[%clk 0:00:46.2]} 28... h6 {[%clk 0:00:22.9]} 29. g6 {[%clk 0:00:43.8]}
29... Nc6 {[%clk 0:00:24.4]} 30. Nf7 {[%clk 0:00:38.5]} 30... Rdf8 {[%clk
0:00:23.7]} 31. h4 {[%clk 0:00:36.3]} 31... h5 {[%clk 0:00:23.6]} 32. Ne5 {[%clk
0:00:31.6]} 32... Ne7 {[%clk 0:00:24.3]} 33. Nxh5 {[%clk 0:00:31.3]} 33... Rh8
{[%clk 0:00:25.5]} 34. Ng3 {[%clk 0:00:31.6]} 34... Rxh4 {[%clk 0:00:26.1]} 35.
Rh1 {[%clk 0:00:31.4]} 35... Rxh1 {[%clk 0:00:24.7]} 36. Nxh1 {[%clk 0:00:33.3]}
36... Nc6 {[%clk 0:00:22.4]} 37. Ng3 {[%clk 0:00:32.4]} 37... Nxe5 {[%clk
0:00:23.2]} 38. dxe5 {[%clk 0:00:33.4]} 38... Rh8 {[%clk 0:00:23.2]} 39. Nxe4
{[%clk 0:00:32.6]} 39... fxe4 {[%clk 0:00:23]} 40. Rh3 {[%clk 0:00:29.2]} 40...
Rf8 {[%clk 0:00:24.1]} 41. Qe3 {[%clk 0:00:28.9]} 41... Qc6 {[%clk 0:00:22.7]}
42. Rh7 {[%clk 0:00:28.6]} 42... Qd7 {[%clk 0:00:19.7]} 43. Kg3 {[%clk
0:00:27.5]} 43... b6 {[%clk 0:00:20.4]} 44. a4 {[%clk 0:00:26.9]} 44... Rg8
{[%clk 0:00:20.4]} 45. a5 {[%clk 0:00:27]} 45... Qe8 {[%clk 0:00:21.7]} 46. axb6
{[%clk 0:00:26.7]} 46... Qxg6+ {[%clk 0:00:22.6]} 47. Kf2 {[%clk 0:00:27.7]}
47... Qxh7 {[%clk 0:00:24.1]} 48. bxa7+ {[%clk 0:00:28.9]} 48... Ka8 {[%clk
0:00:25.7]} 49. Qb6 {[%clk 0:00:29.9]} 49... Qh2+ {[%clk 0:00:24.9]} 50. Kf1
{[%clk 0:00:30.9]} 50... Qxf4+ {[%clk 0:00:25.2]} 51. Ke2 {[%clk 0:00:32.1]}
51... Qh2+ {[%clk 0:00:21.8]} 52. Kd1 {[%clk 0:00:32.3]} 52... Qxe5 {[%clk
0:00:21.8]} 53. Qc6+ {[%clk 0:00:31.1]} 53... Kxa7 {[%clk 0:00:23.3]} 54. Qd7+
{[%clk 0:00:30.1]} 54... Kb6 {[%clk 0:00:22.8]} 55. Kc2 {[%clk 0:00:29.4]} 55...
Rf8 {[%clk 0:00:21.1]} 56. Kb3 {[%clk 0:00:22]} 56... Qc7 {[%clk 0:00:22]} 57.
Qxe6+ {[%clk 0:00:22.1]} 57... Qc6 {[%clk 0:00:23.5]} 58. Qe7 {[%clk 0:00:23.1]}
58... Qc4+ {[%clk 0:00:24.6]} 59. Kc2 {[%clk 0:00:23.1]} 59... Rf2+ {[%clk
0:00:22.9]} 0-1

[Event "*** Titled Tuesday Blitz"]
[Site "Chess.com"]
[Date "2019.10.01"]
[Round "7"]
[White "valeriocarnicelli"]
[Black "Taron_Shagbazyan"]
[Result "0-1"]
[WhiteElo "2488"]
[BlackElo "2741"]
[TimeControl "180+2"]
[EndTime "14:40:17 PDT"]
[Termination "Taron_Shagbazyan won by resignation"]

1. e4 {[%clk 0:02:53.3]} 1... e5 {[%clk 0:02:57.6]} 2. Nf3 {[%clk 0:02:53.8]}
2... Nc6 {[%clk 0:02:58.6]} 3. d4 {[%clk 0:02:54.7]} 3... exd4 {[%clk
0:02:11.5]} 4. Nxd4 {[%clk 0:02:56.6]} 4... Nf6 {[%clk 0:02:11.2]} 5. Nxc6
{[%clk 0:02:56.3]} 5... bxc6 {[%clk 0:02:13.1]} 6. e5 {[%clk 0:02:56.9]} 6...
Qe7 {[%clk 0:02:13.9]} 7. Qe2 {[%clk 0:02:58.2]} 7... Nd5 {[%clk 0:02:15.4]} 8.
c4 {[%clk 0:02:59.3]} 8... Ba6 {[%clk 0:02:17]} 9. b3 {[%clk 0:02:58.9]} 9... g6
{[%clk 0:02:18]} 10. f4 {[%clk 0:02:55.9]} 10... d6 {[%clk 0:02:19.4]} 11. Qf2
{[%clk 0:02:55.5]} 11... Nf6 {[%clk 0:02:19.1]} 12. Be2 {[%clk 0:02:54.4]} 12...
dxe5 {[%clk 0:02:20.1]} 13. Ba3 {[%clk 0:02:49.8]} 13... Qe6 {[%clk 0:02:20.7]}
14. Bxf8 {[%clk 0:02:49.9]} 14... Kxf8 {[%clk 0:02:22.6]} 15. O-O {[%clk
0:02:49.3]} 15... Kg7 {[%clk 0:02:18.5]} 16. Nc3 {[%clk 0:02:49.6]} 16... Rhe8
{[%clk 0:02:16.3]} 17. Rae1 {[%clk 0:02:48.2]} 17... e4 {[%clk 0:01:54.8]} 18.
f5 {[%clk 0:02:45.3]} 18... Qxf5 {[%clk 0:01:54.5]} 19. Qxf5 {[%clk 0:02:40.1]}
19... gxf5 {[%clk 0:01:56.4]} 20. Rxf5 {[%clk 0:02:41.5]} 20... Bc8 {[%clk
0:01:56.6]} 21. Rg5+ {[%clk 0:02:40.7]} 21... Kf8 {[%clk 0:01:37]} 22. Rf1
{[%clk 0:02:40.9]} 22... Re6 {[%clk 0:01:35.2]} 23. Na4 {[%clk 0:02:35.4]} 23...
h6 {[%clk 0:01:30.2]} 24. Rgf5 {[%clk 0:02:30.7]} 24... Kg7 {[%clk 0:01:27.1]}
25. Nc5 {[%clk 0:02:27.2]} 25... Rd6 {[%clk 0:01:26.3]} 26. R5f4 {[%clk
0:02:24.7]} 26... a5 {[%clk 0:01:24.8]} 27. Nxe4 {[%clk 0:02:16.3]} 27... Nxe4
{[%clk 0:01:25.5]} 28. Rxe4 {[%clk 0:02:17.9]} 28... a4 {[%clk 0:01:24]} 29. b4
{[%clk 0:02:13]} 29... Be6 {[%clk 0:01:23.9]} 30. Bg4 {[%clk 0:02:06.7]} 30...
Re8 {[%clk 0:01:24]} 31. Rfe1 {[%clk 0:02:03.1]} 31... Kf6 {[%clk 0:01:18]} 32.
Kf2 {[%clk 0:01:57.1]} 32... Rd2+ {[%clk 0:01:16.5]} 33. R1e2 {[%clk 0:01:42.5]}
33... Bxg4 {[%clk 0:00:58.9]} 34. Rf4+ {[%clk 0:01:42.9]} 34... Kg5 {[%clk
0:00:56.5]} 35. Rxg4+ {[%clk 0:01:44.1]} 35... Kxg4 {[%clk 0:00:57.8]} 36. Rxd2
{[%clk 0:01:45.7]} 36... Re4 {[%clk 0:00:59.2]} 37. Rc2 {[%clk 0:01:37.6]} 37...
Kf4 {[%clk 0:00:58.2]} 38. Rc3 {[%clk 0:01:37.7]} 38... f5 {[%clk 0:00:57.9]}
39. Rh3 {[%clk 0:01:33]} 39... Ke5 {[%clk 0:00:56.6]} 40. Ra3 {[%clk 0:01:06.4]}
40... Rxc4 {[%clk 0:00:47.1]} 41. Rxa4 {[%clk 0:01:07.7]} 41... Ke4 {[%clk
0:00:47.2]} 42. Kg3 {[%clk 0:00:58.3]} 42... f4+ {[%clk 0:00:47.1]} 43. Kh3
{[%clk 0:00:56.4]} 43... h5 {[%clk 0:00:44.7]} 44. a3 {[%clk 0:00:56.4]} 44...
Ke3 {[%clk 0:00:39.4]} 45. Ra5 {[%clk 0:00:55.8]} 45... Rc3 {[%clk 0:00:38.2]}
46. Rxh5 {[%clk 0:00:46.9]} 46... Rxa3 {[%clk 0:00:38.8]} 47. Rc5 {[%clk
0:00:41]} 47... Ke4+ {[%clk 0:00:27.2]} 48. Kg4 {[%clk 0:00:40.4]} 48... Ra2
{[%clk 0:00:28.5]} 49. g3 {[%clk 0:00:38.6]} 49... f3 {[%clk 0:00:23.5]} 50.
Rc4+ {[%clk 0:00:31.8]} 50... Kd3 {[%clk 0:00:22.5]} 51. Rxc6 {[%clk 0:00:18.6]}
51... f2 {[%clk 0:00:22.5]} 52. Rf6 {[%clk 0:00:19.4]} 52... Ke2 {[%clk
0:00:20.8]} 53. Re6+ {[%clk 0:00:18]} 53... Kf1 {[%clk 0:00:22]} 54. h4 {[%clk
0:00:17.4]} 54... Kg2 {[%clk 0:00:23.3]} 55. Rf6 {[%clk 0:00:17.4]} 55... Ra3
{[%clk 0:00:23.6]} 56. Rxf2+ {[%clk 0:00:14.4]} 56... Kxf2 {[%clk 0:00:24.1]}
57. h5 {[%clk 0:00:16]} 57... Rxg3+ {[%clk 0:00:25.7]} 58. Kf5 {[%clk 0:00:17]}
58... Rb3 {[%clk 0:00:22.3]} 59. h6 {[%clk 0:00:13.8]} 59... Rxb4 {[%clk
0:00:23.8]} 60. h7 {[%clk 0:00:14.7]} 60... Rh4 {[%clk 0:00:24.5]} 61. Kg6
{[%clk 0:00:16.3]} 0-1